Cogmind - Beta 12 @@@ ROGUE MODE // 2023.05.15 @ 23:14:26 Player: Mr Goldstein Result: Destroyed by KL-IMI(f) with Tearclaws Performance ------------- Evolutions (3) 1500 Regions Visited (7) 1400 Robots Destroyed (1) 5 Value Destroyed (27) 27 Prototype IDs (0) 0 Alien Tech Used (0) 0 Bonus (834) 834 TOTAL SCORE: 3766 Bonus ------- Pacifist 834 Cogmind --------- Core Integrity 0/700 Matter 179/300 Energy 99/100 System Corruption 16% Temperature Cool (0) Movement Core (50) Location -7/Lower Caves Parts ------- > --- POWER (1) -------- (None) > --- PROPULSION (2) --- (None) > --- UTILITY (8) ------ Improved Melee Analysis Suite Hacking Suite > --- WEAPON (2) ------- (None) > --- INVENTORY (5) ---- Smartbomb Launcher Remote Datajack Peak State ------------ > --- POWER ------------ (None) > --- PROPULSION ------- (None) > --- UTILITY ---------- Improved Melee Analysis Suite Improved Melee Analysis Suite Improved Melee Analysis Suite Improved Melee Analysis Suite Hacking Suite > --- WEAPON ----------- Smartbomb Launcher > --- INVENTORY -------- Remote Datajack [Rating: 31] Favorites ----------- Power None Propulsion None Utility Improved Melee Analysis Suite Device Reaction Control System Processor Improved Melee Analysis Suite Hackware Hacking Suite Weapon Smartbomb Launcher Launcher Smartbomb Launcher Special Weapon Remote Datajack Build | -11 -10 -9 -8 -7 -7 -7 -7 ------- Run | Jun Mat Mat Mat Fac Was Fac Low Slots Evolved 6 | . . 2 2 2 . . . Power . | . . . . . . . . Propulsion . | . . . . . . . . Utility 6 | . . 2 2 2 . . . Weapon . | . . . . . . . . Parts Attached 10 | . . . . 7 . 3 . Power . | . . . . . . . . Engine . | . . . . . . . . Core . | . . . . . . . . Reactor . | . . . . . . . . Propulsion . | . . . . . . . . Treads . | . . . . . . . . Leg . | . . . . . . . . Wheel . | . . . . . . . . Hover . | . . . . . . . . Flight . | . . . . . . . . Utility 8 | . . . . 7 . 1 . Device 1 | . . . . 1 . . . Storage . | . . . . . . . . Processor 6 | . . . . 6 . . . Hackware 1 | . . . . . . 1 . Protection . | . . . . . . . . Artifact . | . . . . . . . . Weapon 2 | . . . . . . 2 . Energy Gun . | . . . . . . . . Energy Cannon . | . . . . . . . . Ballistic Gun . | . . . . . . . . Ballistic Cannon . | . . . . . . . . Launcher 1 | . . . . . . 1 . Special Weapon 1 | . . . . . . 1 . Impact Weapon . | . . . . . . . . Slashing Weapon . | . . . . . . . . Piercing Weapon . | . . . . . . . . Special Melee Weapon . | . . . . . . . . Unidentified Prototypes . | . . . . . . . . Corrupted Parts 1 | . . . . . . 1 . System Corruption 7 | . . . . . . 7 . Parts Lost 5 | . . . . . 1 1 3 Power . | . . . . . . . . Propulsion . | . . . . . . . . Utility 5 | . . . . . 1 1 3 Weapon . | . . . . . . . . Highest Loss Streak 3 | . . . . . 1 1 3 To Critical Strikes . | . . . . . . . . Average Slot Usage (%) 24 | . . . . 31 45 36 32 Processor 22 | . . . . 29 42 34 24 Hackware 1 | . . . . . . 1 7 Naked Turns 276 | . 25 85 109 57 . . . Heaviest Build 9 | . . . . 1 1 9 . Greatest Support 3 | 3 3 3 3 3 3 3 3 Greatest Overweight (x) 2 | . . . . . . 2 . Average Overweight (x) . | . . . . . . . . Largest Inventory Capacity 5 | 5 5 5 5 5 5 5 5 Average Capacity 5 | 5 5 5 5 5 5 5 5 Most Carried 4 | . . . . 2 4 4 3 Average Carried 1 | . . . . . 2 3 3 Final Capacity 5 | 5 5 5 5 5 5 5 5 Final Carried 4 | . . . . 2 4 3 3 Class Distribution -------------------- 100% | Mutant Dominant Class ---------------- Mutant | -10/Materials Mutant | -9/Materials Mutant | -8/Materials Mutant | -7/Factory Mutant | -7/Waste Mutant | -7/Factory Mutant | -7/Lower Caves Resources | -11 -10 -9 -8 -7 -7 -7 -7 ----------- Run | Jun Mat Mat Mat Fac Was Fac Low Matter Collected 197 | 197 . . . . . . . Remotely . | . . . . . . . . Salvage Created 7 | . . . . . . 7 . Parts . | . . . . . . . . Haulers Intercepted . | . . . . . . . . Recyclers Shooed . | . . . . . . . . Parts Field Recycled . | . . . . . . . . Retrieved Matter . | . . . . . . . . Parts Self-Destructed . | . . . . . . . . Prevented . | . . . . . . . . Kills | -11 -10 -9 -8 -7 -7 -7 -7 ------- Run | Jun Mat Mat Mat Fac Was Fac Low Combat Hostiles Destroyed 1 | . . . . . . 1 . AOE 1 | . . . . . . 1 . Classes Destroyed 1 | . . . . . . 1 . Swarmer 1 | . . . . . . 1 . Best Kill Streak 1 | . . . . . . 1 . Combat Bots Only 1 | . . . . . . 1 . Max Kills in Single Turn 1 | . . . . . . 1 . Gunslinging . | . . . . . . . . Exploded 1 | . . . . . . 1 . Melee . | . . . . . . . . Uniques/NPCs Destroyed . | . . . . . . . . Combat | -11 -10 -9 -8 -7 -7 -7 -7 -------- Run | Jun Mat Mat Mat Fac Was Fac Low Damage Taken 1449 | . 1 185 523 96 46 564 34 Core 1417 | . 1 185 523 96 46 532 34 Absorbed by Shields . | . . . . . . . . Core Remaining (%) 64 | 100 99 53 4 . . . . Volleys Fired 1 | . . . . . . 1 . Largest 1 | . . . . . . 1 . Hottest 46 | . . . . . . 46 . Shots Fired 1 | . . . . . . 1 . Gun . | . . . . . . . . Cannon . | . . . . . . . . Launcher 1 | . . . . . . 1 . Special . | . . . . . . . . Kinetic . | . . . . . . . . Thermal . | . . . . . . . . Explosive 1 | . . . . . . 1 . Electromagnetic . | . . . . . . . . Robot Hit Streak . | . . . . . . . . Robot Miss Streak . | . . . . . . . . Penetration Max . | . . . . . . . . Secondary Targets . | . . . . . . . . Shots Hit Robots . | . . . . . . . . Core Hits 2 | . . 1 . . . 1 . Critical Kills . | . . . . . . . . Critical Parts Destroyed . | . . . . . . . . Critical Strikes . | . . . . . . . . Melee Attacks . | . . . . . . . . Impact . | . . . . . . . . Slashing . | . . . . . . . . Piercing . | . . . . . . . . Sneak Attacks . | . . . . . . . . Combat Hostiles . | . . . . . . . . Follow-up Attacks . | . . . . . . . . Damage Inflicted 120 | . 2 4 6 . . 108 . Guns . | . . . . . . . . Cannons . | . . . . . . . . Explosions 96 | . . . . . . 96 . Melee . | . . . . . . . . Ramming 24 | . 2 4 6 . . 12 . Kinetic . | . . . . . . . . Thermal . | . . . . . . . . Explosive 96 | . . . . . . 96 . Electromagnetic . | . . . . . . . . Impact . | . . . . . . . . Slashing . | . . . . . . . . Piercing . | . . . . . . . . Highest Corruption 16 | . . . . . 6 16 16 Average Corruption 10 | . . . . . 6 9 16 Corruption Purged . | . . . . . . . . Corruption Blocked . | . . . . . . . . Effects 15 | . . . . . 1 11 3 Message Errors 4 | . . . . . . 3 1 Matter Fused 3 | . . . . . 1 1 1 Heat Flow Errors 2 | . . . . . . 2 . Energy Discharges 2 | . . . . . . 2 . Alerts 2 | . . . . . . 2 . Misdirections 2 | . . . . . . 1 1 Overload Shots . | . . . . . . . . Overflow Damage . | . . . . . . . . Projectiles . | . . . . . . . . Explosions . | . . . . . . . . Melee . | . . . . . . . . Knockbacks . | . . . . . . . . Impact . | . . . . . . . . Kinetic . | . . . . . . . . Secondary . | . . . . . . . . Self-Inflicted Damage 11 | . 1 2 3 . . 5 . Shots . | . . . . . . . . Rammed 8 | . 1 2 1 . . 4 . Targets Rammed 8 | . 1 2 1 . . 4 . Kicked . | . . . . . . . . Crushed . | . . . . . . . . Highest Temperature 115 | . . . . . . 115 . Average Temperature 67 | . . . . . . 67 . Received Heat Transfer 327 | . . 63 72 72 . 111 9 Siege Activations . | . . . . . . . . Robots Corrupted . | . . . . . . . . Combat Hostiles . | . . . . . . . . Parts Fried . | . . . . . . . . Impact Corruptions . | . . . . . . . . Robots Melted . | . . . . . . . . Combat Hostiles . | . . . . . . . . Parts Melted . | . . . . . . . . Heat Transferred . | . . . . . . . . Parts Sabotaged . | . . . . . . . . Parts Stolen 3 | . . . . . . . 3 Parts Stripped . | . . . . . . . . Power Chain Reactions . | . . . . . . . . Missiles Intercepted . | . . . . . . . . Alert | -11 -10 -9 -8 -7 -7 -7 -7 ------- Run | Jun Mat Mat Mat Fac Was Fac Low Peak Influence 238 | . 15 110 211 140 54 238 . Initial 95 | . . 5 46 95 49 23 . Average 83 | . 6 45 84 113 46 91 . Maximum Alert Level 1 | . . . 1 . . 1 . Low Security (%) 95 | 100 100 100 98 100 100 87 . Level 1 4 | . . . 1 . . 12 . Level 2 . | . . . . . . . . Level 3 . | . . . . . . . . Level 4 . | . . . . . . . . Level 5 . | . . . . . . . . High Security . | . . . . . . . . Max Security . | . . . . . . . . Squads Dispatched 7 | . 1 . 3 1 . 2 . Investigation 1 | . . . 1 . . . . Extermination 1 | . . . . . . 1 . Reinforcement 5 | . 1 . 2 1 . 1 . Assault . | . . . . . . . . Garrison . | . . . . . . . . Intercept . | . . . . . . . . Searches Triggered . | . . . . . . . . Construction Impeded . | . . . . . . . . Haulers Reinforced . | . . . . . . . . Active Scanning Responses . | . . . . . . . . Cargo Convoy Interrupts . | . . . . . . . . Stealth | -11 -10 -9 -8 -7 -7 -7 -7 --------- Run | Jun Mat Mat Mat Fac Was Fac Low Distress Signals 4 | . . 2 1 . . 1 . Communications Jammed . | . . . . . . . . Distress Signals . | . . . . . . . . Times Spotted 59 | . 2 16 15 3 6 14 3 Peak Tracking Total 12 | . 3 12 11 2 6 5 2 Tactical Retreats 8 | . . 2 1 1 . 3 1 Traps | -11 -10 -9 -8 -7 -7 -7 -7 ------- Run | Jun Mat Mat Mat Fac Was Fac Low Traps Triggered 2 | . . . 1 1 . . . Indirectly . | . . . . . . . . Trap Hack Attempts . | . . . . . . . . Triggered . | . . . . . . . . Disarmed . | . . . . . . . . Reprogrammed . | . . . . . . . . Reused . | . . . . . . . . Traps Extracted . | . . . . . . . . Installed . | . . . . . . . . Triggered . | . . . . . . . . Machines | -11 -10 -9 -8 -7 -7 -7 -7 ---------- Run | Jun Mat Mat Mat Fac Was Fac Low Machines Disabled . | . . . . . . . . Max in Single Turn . | . . . . . . . . Machines Repaired . | . . . . . . . . Machines Sabotaged . | . . . . . . . . Overloaded Fab Kills . | . . . . . . . . Hacking | -11 -10 -9 -8 -7 -7 -7 -7 --------- Run | Jun Mat Mat Mat Fac Was Fac Low Machines Accessed 1 | . . . . . . 1 . Terminals . | . . . . . . . . Fabricators 1 | . . . . . . 1 . Repair Stations . | . . . . . . . . Recycling Units . | . . . . . . . . Scanalyzers . | . . . . . . . . Garrison Access . | . . . . . . . . Total Hacks 3 | . . . . . . 3 . Successful . | . . . . . . . . Failed 3 | . . . . . . 3 . Catastrophic . | . . . . . . . . Database Lockouts . | . . . . . . . . Manual . | . . . . . . . . Terminals . | . . . . . . . . Fabricators 3 | . . . . . . 3 . Repair Stations . | . . . . . . . . Recycling Units . | . . . . . . . . Scanalyzers . | . . . . . . . . Garrison Access . | . . . . . . . . Terminal Hacks . | . . . . . . . . Fabricator Hacks . | . . . . . . . . Repair Station Hacks . | . . . . . . . . Recycling Unit Hacks . | . . . . . . . . Scanalyzer . | . . . . . . . . Garrison Access Hacks . | . . . . . . . . Unauthorized Hacks . | . . . . . . . . Terminals . | . . . . . . . . Fabricators . | . . . . . . . . Repair Stations . | . . . . . . . . Recycling Units . | . . . . . . . . Scanalyzers . | . . . . . . . . Garrison Access . | . . . . . . . . Data Cores Recovered . | . . . . . . . . Used . | . . . . . . . . Hacking Detections 1 | . . . . . . 1 . Full Trace Events . | . . . . . . . . Feedback Events . | . . . . . . . . Feedback Blocked . | . . . . . . . . Robot Schematics Acquired . | . . . . . . . . Robots Built . | . . . . . . . . Authchips . | . . . . . . . . Time . | . . . . . . . . Total Robot Build Rating . | . . . . . . . . Part Schematics Acquired . | . . . . . . . . Parts Built . | . . . . . . . . Authchips . | . . . . . . . . Time . | . . . . . . . . Total Part Build Rating . | . . . . . . . . Parts Repaired . | . . . . . . . . Time . | . . . . . . . . Parts Recycled . | . . . . . . . . Recycled Matter . | . . . . . . . . Retrieved Matter . | . . . . . . . . Retrieved Components . | . . . . . . . . Parts Scanalyzed . | . . . . . . . . Part Schematics Acquired . | . . . . . . . . Parts Damaged . | . . . . . . . . Bothacking | -11 -10 -9 -8 -7 -7 -7 -7 ------------ Run | Jun Mat Mat Mat Fac Was Fac Low Used RIF Installer . | . . . . . . . . Robots Hacked . | . . . . . . . . Non-combat . | . . . . . . . . Combat . | . . . . . . . . Robot Hacks Applied . | . . . . . . . . Relay Couplers Released . | . . . . . . . . Fabnet Peak Effective % . | . . . . . . . . Robots Rewired . | . . . . . . . . Allies Hacked . | . . . . . . . . Hacks Repelled . | . . . . . . . . Allies | -11 -10 -9 -8 -7 -7 -7 -7 -------- Run | Jun Mat Mat Mat Fac Was Fac Low Total Allies 1 | . . . . . 1 . . Largest Group 1 | . . . . . 1 . . Highest-Rated Group 31 | . . . . . 31 . . Highest-Rated Ally 31 | . . . . . 31 . . Total Orders . | . . . . . . . . Ally Attacks 7 | . . . . . 7 . . Total Damage 144 | . . . . . 144 . . Kills . | . . . . . . . . Allies Corrupted . | . . . . . . . . Allies Melted . | . . . . . . . . Intel | -11 -10 -9 -8 -7 -7 -7 -7 ------- Run | Jun Mat Mat Mat Fac Was Fac Low Robot Analysis Total . | . . . . . . . . Derelict Logs Recovered . | . . . . . . . . Drone Launches . | . . . . . . . . Drone Recoveries . | . . . . . . . . Exploration | -11 -10 -9 -8 -7 -7 -7 -7 ------------- Run | Jun Mat Mat Mat Fac Was Fac Low Turns Passed 769 | 10 25 85 109 167 39 273 61 Spaces Moved 1458 | 21 47 165 215 306 75 508 121 Core 1458 | 21 47 165 215 306 75 508 121 Treads . | . . . . . . . . Legs . | . . . . . . . . Wheels . | . . . . . . . . Hover . | . . . . . . . . Flight . | . . . . . . . . Fastest Speed 50 | 50 50 50 50 50 50 50 50 Average Speed 50 | 50 50 50 50 50 50 51 50 Slowest Speed 150 | 50 50 50 50 50 50 150 50 Overloaded Moves . | . . . . . . . . Propulsion Burnouts . | . . . . . . . . Robots Hopped . | . . . . . . . . Cave-ins Triggered . | . . . . . . . . Exploration Rate (%) 26 | 3 14 22 32 7 78 23 32 Regions Visited 7 Branch Regions 1 Pre-discovered Areas . | . . . . . . . . Known Exits Taken . | . . . . . . . . Unknown Exits Taken 5 | 1 1 1 1 . . 1 . Scrap Searched . | . . . . . . . . Spaces Dug 9 | . . . . . . 9 . Terrain Destroyed 9 | . . . . . . 9 . Melee . | . . . . . . . . Projectile . | . . . . . . . . AOE 9 | . . . . . . 9 . Terrain Rammed . | . . . . . . . . Walls Destroyed . | . . . . . . . . Machines Disabled . | . . . . . . . . Actions | -11 -10 -9 -8 -7 -7 -7 -7 --------- Run | Jun Mat Mat Mat Fac Was Fac Low Total 1477 | 20 47 166 215 316 75 517 121 Wait 1 | . . . . 1 . . . Move 1452 | 20 46 164 214 306 74 507 121 Hop . | . . . . . . . . Pick Up 3 | . . . . 2 1 . . Fast Attach 7 | . . . . 7 . . . Attach 3 | . . . . . . 3 . Detach 2 | . . . . . . 2 . Swap . | . . . . . . . . Drop . | . . . . . . . . Fire 1 | . . . . . . 1 . Melee . | . . . . . . . . Ram 8 | . 1 2 1 . . 4 . Kick . | . . . . . . . . Crush . | . . . . . . . . Escape Stasis . | . . . . . . . . Rewire . | . . . . . . . . Trap . | . . . . . . . . Miscellaneous . | . . . . . . . . Route ------- -11/Junkyard -10/Materials -9/Materials -8/Materials -7/Factory -7/Waste -7/Factory -7/Lower Caves History --------- Turn | Location | Event 4 | -11/Junkyard | Discovered new exit (range 15) 11 | -11/Junkyard | Entered Materials 29 | -10/Materials | Discovered new exit (range 13) 36 | -10/Materials | Entered another Materials area 36 | -9/Materials | Evolved 2 slots: Utility x2 113 | -9/Materials | Discovered new exit (range 15) 121 | -9/Materials | Entered another Materials area 121 | -8/Materials | Evolved 2 slots: Utility x2 222 | -8/Materials | Discovered new exit (range 16) 224 | -8/Materials | Core integrity fell below 50% 228 | -8/Materials | Core integrity fell below 20% 230 | -8/Materials | Entered Factory 230 | -7/Factory | Evolved 2 slots: Utility x2 318 | -7/Factory | Build established: Mutant 397 | -7/Factory | Sucked down chute 397 | -7/Factory | Entered Waste 398 | -7/Waste | Met a frightened Derelict 408 | -7/Waste | Spotted C-40 Crusher 411 | -7/Waste | Spotted C-40 Crusher 411 | -7/Waste | Spotted C-40 Crusher 411 | -7/Waste | Spotted C-40 Crusher 412 | -7/Waste | EMP discharged 415 | -7/Waste | Spotted C-40 Crusher 415 | -7/Waste | Crushed by Compactor (1 part destroyed, 1 dropped) 420 | -7/Waste | Spotted C-40 Crusher 428 | -7/Waste | Discovered new exit (range 14) 436 | -7/Waste | Entered Factory 565 | -7/Factory | Core integrity fell below 50% 644 | -7/Factory | Core integrity fell below 20% 645 | -7/Factory | System corruption reached 10% 702 | -7/Factory | Discovered new exit (range 12) 709 | -7/Factory | Entered Lower Caves 770 | -7/Lower Caves | Destroyed by KL-IMI(f) with Tearclaws Last Messages --------------- 00654_ U-05 Engineer lays Concrete. 00659_ U-05 Engineer builds a Wall. 00660_ U-05 Engineer lays Concrete. 00662_ U-05 Engineer builds a Door. 00665_ U-05 Engineer lays Concrete. 00666_ U-05 Engineer builds a Wall. 00667_ U-05 Engineer lays Concrete. 00669_ U-05 Engineer builds a Wall. 00676_ W-25 Informer sends out distress signal. 00679_ System corrupted: Heat flow error (+146). 00682_ Slammed into K-01 Serf. 00686_ ALERT: Rogue bot located, Programmers report to Factory Zone 2B. 00702_ EXIT=FOUND 00703_ System corrupted: Heat flow error (+149). LOCATION=UNKNOWN GOAL=ESCAPE 00750_ Imp. Melee Analysis Suite ripped off. 00754_ System corrupted: Matter fused (-9). 00756_ Imp. Melee Analysis Suite ripped off. 00769_ UXH|Y#HHHXXUPJ3UO8M,Q8ZAPI2MZK<2 Map ----- +----------------------------------------------------+ | ????????## ## # #??## | | ?????????## ## #???###### | | ??????????# ### # # #?????#??## ###### | | ??????????# ### # # # #??#### ??# ###### | | ??????????# ### ## ####?## ??# | | ??????????# ## ##????# ?# | | ??????????# ##??????# ## # | | ??????????# #????????# ## | | ??????????## ## ####?????????# ###### | | ???????????### #??##????????????## ##### | | ?????????????# #?????????######??# | | ?????????????# #???###??# #??# | | ?????????????# #??## ### ?#?### ###### | | ?????????????# #### #??? ##??# #????### | | ?????????????# #???? ### ??????# | | ?????????????# #???? ## #?????# | | ?????????????###### #??? ### #?????? | | ??????????????????# ##??? ###### #?????? | | ?????????????????## ##??## #????# #?????? | | ?????????????????# #### #????? ##?????? | | ?????????????????## ## #??????####??????? | | ??????????????????## #?????????????????? | | ???????????????????#### #?????????????????? | | ??????????????????????## ##????????????????? | | ??????????????????????## f ###??????????????? | | ??????????????????????# @ #??????????????? | | ??????????????????????# #?????????????? | | ??????????????????????# ##?????????????? | | ?????????????????????# ##### ##??????????????? | | ???????????????????? ?????##???????????????? | | ?????????????????? ??????????????????????? | | ????????????????? ??????????????????????? | | ??????????????? """" " "" ?????????????????????? | | ??????????????? """ " "" ?????????????????????? | | ?????????????????" " " $ ?????????????????????? | | ????????????????? """" ?????????????????????? | | ???????????????? "" ""? #????????????????????? | | ??????????????? " ??????" ????????????????????? | | ???????????????? ???????? ????????????????????? | | ????????????????????????? ????????????????????? | | ????????????????????????? ????????????????????? | | ????????????????????????? ?????????????????????? | | ?????????????????????????????????????????????????? | | ?????????????????????????????????????????????????? | | ?????????????????????????????????????????????????? | | ?????????????????????????????????????????????????? | | ?????????????????????????????????????????????????? | | ?????????????????????????????????????????????????? | | ?????????????????????????????????????????????????? | | ?????????????????????????????????????????????????? | +----------------------------------------------------+ Best States ------------- Heat Dissipation 34 Energy Generation 5 Energy Capacity 100 Matter Stores 300 Matter Capacity 300 Sight Range 16 Terrain Scan Density 10 Evasion (%) 58 Melee Accuracy 36 Offensive Hacking 10 Item Schematics ----------------- None Robot Schematics ------------------ None Fabricated ------------ Nothing Alien Tech Used ----------------- None Achievements -------------- None Challenges ------------ None Game ------ Seed TransdimensionalCoolingBeam Manual? 0 Play Time 00:07:47 Cumulative 214.6 hours Start 2023.05.15 @ 22:53:11 End 2023.05.15 @ 23:14:26 Sessions 1 Manual Loads 0 Difficulty Rogue Special Mode None Game No. 632 Rogue 632 Adventurer 0 Explorer 0 Win Type - Total 9 Types 7/0/1/1/0/0/0/0/0 Lore% 82 Gallery% 80 Achievement% 71 Wizard Run 0 Options --------- ASCII 0 Keyboard 0 Movement Numpad Keybinds 0 Fullscreen 1 Font 16/SmallcapsGlow Map View 75x55 Tactical HUD 1 Map Filters NONE Filters NONE Steam 1 RUN: 5ad3d40e-5f64-42c5-9869-1f3bbc563555